{"text_format":"3","workbook":"xlsx","n_sheets":2,"sheets":["AUGŠANAS DATI","AUGŠANAS DIAGRAMMA"],"not_rendered":{"charts":1,"defined_names":3},"read":"whole","date_system":"1900"}

{"sheet":"AUGŠANAS DATI","index":0,"n_rows":23,"n_cols":8,"rows_kept":23,"merged":[[0,1,0,7],[1,2,1,7]]}
[null,"Bērna augšana "]
[null,"Bērna vārds:","Vārds"]
[null,"Vecums","Mārciņas","Unces","Svars (mārc.)","Svara\nprocentile","Garums (collas)","Garuma\nprocentile"]
[null,"Piedzimstot",7,null,{"$f":"IF(COUNT(Dati[[#This Row],[Mārciņas]:[Unces]])>0,Dati[[#This Row],[Mārciņas]]+(Dati[[#This Row],[Unces]]/16),NA())","v":7},40,19.5,70]
[null,"4 dienas",6,8,{"$f":"IF(COUNT(Dati[[#This Row],[Mārciņas]:[Unces]])>0,Dati[[#This Row],[Mārciņas]]+(Dati[[#This Row],[Unces]]/16),NA())","v":6.5},41,19.5,70]
[null,"7 dienas",6,4.8,{"$f":"IF(COUNT(Dati[[#This Row],[Mārciņas]:[Unces]])>0,Dati[[#This Row],[Mārciņas]]+(Dati[[#This Row],[Unces]]/16),NA())","v":6.3},42,20,71]
[null,"11 dienas",6,9.6,{"$f":"IF(COUNT(Dati[[#This Row],[Mārciņas]:[Unces]])>0,Dati[[#This Row],[Mārciņas]]+(Dati[[#This Row],[Unces]]/16),NA())","v":6.6},43,20,71]
[null,"14 dienas",7,null,{"$f":"IF(COUNT(Dati[[#This Row],[Mārciņas]:[Unces]])>0,Dati[[#This Row],[Mārciņas]]+(Dati[[#This Row],[Unces]]/16),NA())","v":7},44,20,71]
[null,"18 dienas",7,12,{"$f":"IF(COUNT(Dati[[#This Row],[Mārciņas]:[Unces]])>0,Dati[[#This Row],[Mārciņas]]+(Dati[[#This Row],[Unces]]/16),NA())","v":7.75},45,21,72]
[null,"21 dienas",8,8,{"$f":"IF(COUNT(Dati[[#This Row],[Mārciņas]:[Unces]])>0,Dati[[#This Row],[Mārciņas]]+(Dati[[#This Row],[Unces]]/16),NA())","v":8.5},46,21,72]
[null,"25 dienas",null,null,{"$f":"IF(COUNT(Dati[[#This Row],[Mārciņas]:[Unces]])>0,Dati[[#This Row],[Mārciņas]]+(Dati[[#This Row],[Unces]]/16),NA())","v":{"$error":"#N/A"}}]
[null,"28 dienas",null,null,{"$f":"IF(COUNT(Dati[[#This Row],[Mārciņas]:[Unces]])>0,Dati[[#This Row],[Mārciņas]]+(Dati[[#This Row],[Unces]]/16),NA())","v":{"$error":"#N/A"}}]
[null,"5 nedēļas",null,null,{"$f":"IF(COUNT(Dati[[#This Row],[Mārciņas]:[Unces]])>0,Dati[[#This Row],[Mārciņas]]+(Dati[[#This Row],[Unces]]/16),NA())","v":{"$error":"#N/A"}}]
[null,"6 nedēļas",null,null,{"$f":"IF(COUNT(Dati[[#This Row],[Mārciņas]:[Unces]])>0,Dati[[#This Row],[Mārciņas]]+(Dati[[#This Row],[Unces]]/16),NA())","v":{"$error":"#N/A"}}]
[null,"7 nedēļas",null,null,{"$f":"IF(COUNT(Dati[[#This Row],[Mārciņas]:[Unces]])>0,Dati[[#This Row],[Mārciņas]]+(Dati[[#This Row],[Unces]]/16),NA())","v":{"$error":"#N/A"}}]
[null,"2 mēneši",null,null,{"$f":"IF(COUNT(Dati[[#This Row],[Mārciņas]:[Unces]])>0,Dati[[#This Row],[Mārciņas]]+(Dati[[#This Row],[Unces]]/16),NA())","v":{"$error":"#N/A"}}]
[null,"3 mēneši",null,null,{"$f":"IF(COUNT(Dati[[#This Row],[Mārciņas]:[Unces]])>0,Dati[[#This Row],[Mārciņas]]+(Dati[[#This Row],[Unces]]/16),NA())","v":{"$error":"#N/A"}}]
[null,"6 mēneši",null,null,{"$f":"IF(COUNT(Dati[[#This Row],[Mārciņas]:[Unces]])>0,Dati[[#This Row],[Mārciņas]]+(Dati[[#This Row],[Unces]]/16),NA())","v":{"$error":"#N/A"}}]
[null,"9 mēneši",null,null,{"$f":"IF(COUNT(Dati[[#This Row],[Mārciņas]:[Unces]])>0,Dati[[#This Row],[Mārciņas]]+(Dati[[#This Row],[Unces]]/16),NA())","v":{"$error":"#N/A"}}]
[null,"12 mēneši",null,null,{"$f":"IF(COUNT(Dati[[#This Row],[Mārciņas]:[Unces]])>0,Dati[[#This Row],[Mārciņas]]+(Dati[[#This Row],[Unces]]/16),NA())","v":{"$error":"#N/A"}}]
[null,"18 mēneši",null,null,{"$f":"IF(COUNT(Dati[[#This Row],[Mārciņas]:[Unces]])>0,Dati[[#This Row],[Mārciņas]]+(Dati[[#This Row],[Unces]]/16),NA())","v":{"$error":"#N/A"}}]
[null,"24 mēneši",null,null,{"$f":"IF(COUNT(Dati[[#This Row],[Mārciņas]:[Unces]])>0,Dati[[#This Row],[Mārciņas]]+(Dati[[#This Row],[Unces]]/16),NA())","v":{"$error":"#N/A"}}]
[null,"36 mēneši",null,null,{"$f":"IF(COUNT(Dati[[#This Row],[Mārciņas]:[Unces]])>0,Dati[[#This Row],[Mārciņas]]+(Dati[[#This Row],[Unces]]/16),NA())","v":{"$error":"#N/A"}}]

{"sheet":"AUGŠANAS DIAGRAMMA","index":1,"n_rows":1,"n_cols":2,"rows_kept":1,"merged":[[0,1,1,1]]}
[null,"MAZUĻA ATĪSTĪBAS DIAGRAMMA"]